bitfinex-derivatives/quotes_SOLF0:USTF0_20260126
["timestamp","ask_amount","ask_price","bid_price","bid_amount"]
[1769434566115,0.73351191,122.97,122.92,7.3287]
[1769434566812,0.73351191,122.97,122.92,10.87155537]
[1769434567316,7.3252,122.98,122.94,3.54285537]
[1769434568623,8.05871191,122.98,122.93,7.328]
[1769434569516,8.05871191,122.98,122.93,10.87085537]
[1769434572522,8.05871191,122.98,122.93,3.54285537]
[1769434572927,0.73351191,122.96,122.89,3.54285537]
[1769434573118,0.73351191,122.95,122.89,5.27315603]
[1769434573524,0.73351191,122.95,122.9,10.87275537]
[1769434574220,0.73351191,122.95,122.9,12.60305603]
[1769434574621,8.06051191,122.95,122.89,7.3305]
[1769434574813,0.73351191,122.94,122.88,5.27315603]
[1769434575019,0.73351191,122.93,122.88,3.54285537]
[1769434575920,0.73351191,122.93,122.88,10.87385537]
[1769434576319,7.3276,122.94,122.88,10.87385537]
[1769434576518,9.79081257,122.95,122.89,10.87335537]
[1769434576823,8.06051191,122.95,122.89,10.87335537]
[1769434577225,8.06051191,122.95,122.89,12.60365603]
[1769434577626,8.06051191,122.95,122.89,5.27315603]
[1769434580715,8.06051191,122.95,122.89,3.54285537]
[1769434580924,7.3278,122.94,122.89,3.54285537]
[1769434581728,8.06135718,122.94,122.89,3.54285537]
[1769434585133,7.3282,122.93,122.89,3.54285537]
[1769434587333,8.06115718,122.94,122.89,3.54285537]
[1769434592644,8.06115718,122.94,122.89,5.27315603]
[1769434600454,8.06115718,122.94,122.89,3.54285537]
[1769434601859,9.05730066,122.95,122.9,3.45909225]
[1769434602061,9.79085784,122.95,122.9,3.45909225]
[1769434602661,8.06055718,122.95,122.9,3.45909225]
[1769434605561,9.79085784,122.95,122.9,3.45909225]
[1769434606750,0.73355718,122.94,122.9,3.45909225]
[1769434607965,0.73355718,122.94,122.88,10.79019225]
[1769434608565,7.3282,122.93,122.88,3.45909225]
[1769434612664,2.46385784,122.94,122.87,3.42678898]
[1769434612665,8.06255292,122.92,122.87,3.42678898]
[1769434615967,8.06315292,122.91,122.86,7.3321]
[1769434616274,8.06315292,122.91,122.85,3.42678898]
[1769434616275,8.06315292,122.91,122.85,12.48998964]
[1769434616473,8.06315292,122.91,122.86,3.42678898]
[1769434616875,8.06315292,122.91,122.86,10.75888898]
[1769434617180,0.73365292,122.93,122.89,3.42678898]
[1769434619578,7.3277,122.94,122.9,3.42678898]
[1769434620377,9.05880371,122.94,122.9,3.42678898]
[1769434620581,9.79245663,122.94,122.88,10.75768898]
[1769434620781,8.06135292,122.94,122.88,10.75768898]
[1769434620980,8.06185292,122.93,122.88,10.75768898]
[1769434621182,0.73365292,122.91,122.86,3.42678898]
[1769434621379,2.46475663,122.91,122.86,3.42678898]
[1769434621887,9.79425663,122.91,122.86,3.42678898]
[1769434622883,7.33,122.9,122.86,3.42678898]
[1769434623085,2.46475663,122.9,122.84,3.42678898]
[1769434623386,0.73365292,122.89,122.84,3.42678898]
[1769434623680,8.06425292,122.89,122.84,3.42678898]
[1769434624585,8.06425292,122.89,122.82,5.15789269]
[1769434624586,8.06495292,122.88,122.82,5.15789269]
[1769434625081,8.06555292,122.87,122.82,3.42678898]
[1769434625289,9.79665663,122.87,122.8,12.49329269]
[1769434625483,0.73365292,122.86,122.8,12.49329269]
[1769434625687,2.46475663,122.86,122.8,3.42678898]
[1769434626083,0.73365292,122.84,122.78,3.42678898]
[1769434626286,325.59365292,122.86,122.79,3.42678898]
[1769434626490,0.73365292,122.88,122.81,5.15789269]
[1769434626785,2.46475663,122.87,122.81,3.42678898]
[1769434627487,8.06545292,122.87,122.81,3.42678898]
[1769434627988,299.84,122.88,122.82,5.15789269]
[1769434628176,299.84,122.88,122.83,3.42678898]
[1769434628382,302.30475663,122.88,122.81,5.15789269]
[1769434628582,0.73365292,122.87,122.81,3.42678898]
[1769434629489,0.73365292,122.87,122.81,5.15789269]
[1769434629883,8.06555292,122.87,122.81,5.15789269]
[1769434630186,9.79665663,122.87,122.81,3.42678898]
[1769434630387,8.06555292,122.87,122.81,5.15789269]
[1769434630790,8.06595292,122.86,122.81,5.15789269]
[1769434631086,8.06595292,122.86,122.81,3.42678898]
[1769434631287,8.06665292,122.85,122.79,3.42678898]
[1769434631485,2.46475663,122.85,122.79,3.42678898]
[1769434632483,0.73365292,122.82,122.77,3.42678898]
[1769434633090,0.73365292,122.82,122.75,3.42678898]
[1769434633390,0.73365292,122.82,122.75,5.15789269]
[1769434633590,2.46475663,122.82,122.75,5.15789269]
[1769434633888,9.79955663,122.82,122.76,3.42678898]
[1769434634087,8.06845292,122.82,122.76,3.42678898]
[1769434634292,8.06845292,122.82,122.76,5.15789269]
[1769434634684,8.06845292,122.82,122.76,3.42678898]
[1769434635290,8.06845292,122.82,122.76,5.15789269]
[1769434636293,8.06775292,122.84,122.78,3.42678898]
[1769434636988,0.73365292,122.84,122.78,3.42678898]
[1769434637193,0.73365292,122.83,122.78,3.42678898]
[1769434637490,2.46475663,122.83,122.76,12.49609269]
[1769434637891,0.73365292,122.82,122.76,12.49609269]
[1769434638094,8.06845292,122.82,122.76,5.15789269]
[1769434638491,0.73713209,122.81,122.74,4.98849477]
[1769434639087,1.73110371,122.79,122.74,3.25739106]
[1769434639289,2.46790622,122.8,122.74,3.25739106]
[1769434639490,0.73680251,122.8,122.74,3.25739106]
[1769434639885,8.07280251,122.8,122.74,3.25739106]
[1769434640896,9.80390622,122.8,122.74,3.25739106]
[1769434641290,8.07280251,122.8,122.74,3.25739106]
[1769434644489,9.80390622,122.8,122.74,3.25739106]
[1769434644898,8.07210251,122.82,122.76,3.35992623]
[1769434645094,8.07210251,122.82,122.76,5.09102994]
[1769434646595,8.07210251,122.82,122.77,1.73110371]
[1769434646796,0.73680251,122.85,122.78,5.09102994]
[1769434647101,0.73680251,122.84,122.78,5.09102994]
[1769434647606,8.07040251,122.84,122.79,3.35992623]
[1769434648201,7.3336,122.84,122.8,3.35992623]
[1769434648400,325.1,122.85,122.8,3.35992623]
[1769434648600,0.73680251,122.86,122.8,3.35992623]
[1769434648799,0.73680251,122.85,122.8,3.35992623]
[1769434649603,8.07000251,122.85,122.8,3.35992623]
[1769434650703,8.07000251,122.85,122.8,5.09102994]
[1769434651103,325.85680251,122.87,122.8,5.09102994]
[1769434651504,325.85680251,122.87,122.8,12.42692994]
[1769434651709,325.85680251,122.87,122.81,1.73110371]
[1769434652294,8.06920251,122.86,122.8,3.35992623]
[1769434652498,8.06920251,122.86,122.8,5.09102994]
[1769434653107,8.06920251,122.86,122.81,5.09102994]
[1769434653806,325.12,122.87,122.81,5.09102994]
[1769434654003,325.12,122.87,122.82,5.09102994]
[1769434655609,325.12,122.87,122.82,3.35992623]
[1769434656610,325.12,122.87,122.82,5.09102994]
[1769434657212,325.85680251,122.87,122.82,5.09102994]
[1769434659615,325.85680251,122.87,122.82,3.35992623]
[1769434660214,333.18870251,122.87,122.82,3.35992623]
[1769434661111,334.91980622,122.87,122.82,3.35992623]
[1769434662513,334.91980622,122.87,122.82,1.73110371]
[1769434662514,325.12,122.87,122.82,1.73110371]
[1769434662709,325.12,122.87,122.83,3.35992623]
[1769434663816,325.12,122.87,122.84,3.35992623]
[1769434664112,8.06740251,122.89,122.84,3.35992623]
[1769434664311,8.06740251,122.89,122.84,5.09102994]
[1769434664715,0.73680251,122.89,122.84,10.69342623]
[1769434664913,7.33,122.9,122.85,3.35992623]
[1769434666117,8.06680251,122.9,122.85,3.35992623]
[1769434670026,333.10011354,122.91,122.85,12.42372994]
[1769434672425,0.73071354,122.92,122.87,3.47587746]
[1769434672814,9.78941725,122.94,122.88,3.47587746]
[1769434673019,8.05831354,122.94,122.88,3.47587746]
[1769434673215,0.73071354,122.93,122.88,3.47587746]
[1769434674316,9.79011725,122.93,122.86,10.80817746]
[1769434674718,2.46181725,122.92,122.86,10.80817746]
[1769434675822,9.05940371,122.93,122.87,10.80747746]
[1769434676025,2.46181725,122.94,122.88,3.47587746]
[1769434676325,0.73071354,122.94,122.88,3.47587746]
[1769434677522,0.73071354,122.94,122.89,3.47587746]
[1769434677722,334.74871725,122.96,122.89,3.47587746]
[1769434677922,1.73110371,122.95,122.89,3.47587746]
[1769434678623,1.73110371,122.95,122.9,10.80577746]
[1769434678819,334.74871725,122.96,122.9,10.80577746]
[1769434680429,0.73071354,122.94,122.88,3.47587746]
[1769434680728,2.46181725,122.94,122.88,3.47587746]
[1769434681030,0.73071354,122.93,122.88,3.47587746]
[1769434681431,2.46181725,122.92,122.86,3.47587746]
[1769434681630,2.46292779,122.92,122.86,3.47587746]
[1769434682920,9.79182779,122.92,122.86,10.80817746]
[1769434683127,0.73071354,122.92,122.87,3.47587746]
[1769434683825,0.73071354,122.92,122.87,10.80757746]
[1769434684333,9.79172779,122.92,122.87,3.47587746]
[1769434686434,1.73221425,122.92,122.87,3.47587746]
[1769434686634,2.46292779,122.92,122.87,3.47587746]
[1769434686830,9.79232779,122.91,122.85,10.80867746]
[1769434687334,2.46292779,122.91,122.85,3.47587746]
[1769434687536,9.79282779,122.9,122.85,3.47587746]
[1769434690132,0.73071354,122.89,122.83,10.80997746]
[1769434691134,0.73071354,122.89,122.84,3.47587746]
[1769434694731,8.06131354,122.89,122.84,3.47587746]
[1769434697738,9.79352779,122.89,122.84,3.47587746]
[1769434703844,1.73221425,122.88,122.83,7.3341]
[1769434704642,1.73221425,122.88,122.83,10.90627588]
[1769434705538,8.06131354,122.89,122.83,10.90627588]
[1769434706945,8.06131354,122.89,122.83,12.63849013]
[1769434707540,8.07006639,122.88,122.83,5.30439013]
[1769434707747,8.07006639,122.88,122.83,3.57217588]
[1769434708046,9.80228064,122.88,122.83,3.57217588]
[1769434711248,8.07066639,122.87,122.82,7.3346]
[1769434716253,8.07066639,122.87,122.81,10.90737588]
[1769434716561,1.73221425,122.88,122.81,10.90737588]
[1769434716562,8.07136639,122.86,122.81,10.90737588]
[1769434717658,0.73886639,122.85,122.79,3.57217588]
[1769434718059,8.07306639,122.83,122.78,7.337]
[1769434718959,9.80598064,122.82,122.77,3.57217588]
[1769434719961,0.73886639,122.81,122.75,10.91057588]
[1769434720364,8.07426639,122.81,122.75,10.91057588]
[1769434720563,0.73886639,122.81,122.75,3.57217588]
[1769434722063,8.07416639,122.81,122.75,10.91107588]
[1769434722475,7.3348,122.82,122.77,3.57217588]
[1769434722866,0.73886639,122.83,122.78,3.57217588]
[1769434723963,8.07306639,122.83,122.78,3.57217588]
[1769434733470,9.06581425,122.84,122.79,3.32345641]
[1769434733673,0.74030699,122.85,122.79,3.32345641]
[1769434734173,8.07330699,122.85,122.79,10.65975641]
[1769434735474,8.07330699,122.85,122.8,3.32345641]
[1769434737675,290.26,122.87,122.78,1.73221425]
[1769434737676,0.74030699,122.83,122.78,3.32345641]
[1769434738374,8.07330699,122.85,122.78,3.32345641]
[1769434739877,8.07330699,122.85,122.79,7.3364]
[1769434740977,0.74030699,122.83,122.76,3.32345641]
[1769434741280,0.74030699,122.81,122.74,3.32345641]
[1769434741471,0.74030699,122.79,122.72,3.32345641]
[1769434741676,9.81295932,122.79,122.72,3.32345641]
[1769434742079,2.47635932,122.79,122.73,7.3401]
[1769434742278,9.07195233,122.81,122.73,3.32345641]
[1769434742580,9.81225932,122.81,122.73,3.32345641]
[1769434742781,0.74030699,122.8,122.73,3.32345641]
[1769434743381,0.74030699,122.8,122.74,3.32345641]
[1769434743874,8.07630699,122.8,122.74,10.66295641]
[1769434744583,8.07630699,122.8,122.74,3.32345641]
[1769434746087,2.47635932,122.79,122.72,5.05950874]
[1769434746985,7.3372,122.78,122.72,12.40020874]
[1769434747186,7.3372,122.78,122.73,3.32345641]
[1769434747572,9.81285932,122.79,122.73,3.32345641]
[1769434749488,0.74030699,122.78,122.73,10.66355641]
[1769434751483,8.07740699,122.78,122.73,3.32345641]
[1769434757092,8.07740699,122.78,122.73,10.66355641]
[1769434759386,7.3378,122.77,122.73,3.32345641]
[1769434767800,8.07592636,122.77,122.72,7.3406]
[1769434769911,8.07592636,122.77,122.72,3.33355822]
[1769434774407,0.73812636,122.77,122.72,10.67415822]
[1769434774600,0.73812636,122.79,122.73,3.33355822]
[1769434775011,8.07462636,122.79,122.74,3.33355822]
[1769434775615,0.73812636,122.79,122.74,3.33355822]
[1769434776013,8.07472636,122.79,122.74,3.33355822]
[1769434776717,8.07552636,122.78,122.73,3.33355822]
[1769434778514,0.73812636,122.77,122.72,7.3407]
[1769434778914,8.07472636,122.79,122.73,10.67355822]
[1769434779322,8.07472636,122.79,122.74,3.33355822]
[1769434783227,7.3371,122.78,122.74,3.33355822]
[1769434784423,0.73812636,122.77,122.72,3.33355822]
[1769434785125,0.73812636,122.77,122.72,10.67365822]
[1769434786130,8.07472636,122.79,122.73,10.67355822]
[1769434787424,0.73812636,122.78,122.71,12.41031055]
[1769434787823,0.73812636,122.78,122.72,3.33355822]
[1769434788530,7.3378,122.77,122.72,10.67415822]
[1769434788821,0.73812636,122.78,122.72,10.67415822]
[1769434789218,6.32480668,122.79,122.73,3.45833856]
[1769434789421,8.80300857,122.8,122.74,3.45833856]
[1769434790529,0.74214956,122.79,122.74,3.45833856]
[1769434790928,8.07874956,122.79,122.74,3.45833856]
[1769434793029,8.07874956,122.79,122.74,10.79773856]
[1769434793226,283.64214956,122.81,122.75,5.19439089]
[1769434793429,283.64214956,122.81,122.76,3.45833856]
[1769434794130,283.64214956,122.81,122.76,10.79653856]
[1769434794733,7.3352,122.82,122.77,10.79603856]
[1769434800431,7.3352,122.82,122.75,1.73605233]
[1769434800432,0.74214956,122.83,122.78,10.79533856]
[1769434800632,0.74214956,122.83,122.78,3.45833856]
[1769434802036,8.07624956,122.83,122.78,3.45833856]
[1769434802538,0.74214956,122.83,122.78,10.79543856]
[1769434803443,333.29574956,122.84,122.79,3.45833856]
[1769434806741,8.07574956,122.84,122.79,3.45833856]
[1769434809938,0.74214956,122.84,122.79,10.79483856]
[1769434810143,7.333,122.85,122.8,3.45833856]
[1769434810835,325.90214956,122.86,122.8,10.79403856]
[1769434811039,325.90214956,122.86,122.8,3.45833856]
[1769434811843,325.90214956,122.86,122.8,5.19277859]
[1769434812143,333.23474956,122.86,122.81,10.79353856]
[1769434813940,9.80958959,122.85,122.78,3.45833856]
[1769434816042,9.80958959,122.85,122.79,10.79473856]
[1769434818047,9.80958959,122.85,122.8,3.24462749]
[1769434825950,0.73685001,122.89,122.8,3.24462749]
[1769434826155,0.73685001,122.89,122.84,3.55584709]
[1769434833757,0.73685001,122.89,122.8,114.1115]
[1769434833758,333.14605001,122.92,122.86,3.55584709]
[1769434835154,0.73685001,122.91,122.86,3.55584709]
[1769434838562,0.73685001,122.91,122.86,10.88814709]
[1769434839461,2.47129004,122.91,122.86,3.55584709]
[1769434840161,2.47129004,122.89,122.84,3.55584709]
[1769434841064,0.73685001,122.88,122.82,10.89054709]
[1769434842963,8.06805001,122.88,122.82,10.89054709]
[1769434845460,8.06805001,122.88,122.83,3.55584709]
[1769434847361,0.73685001,122.88,122.83,3.55584709]
[1769434847568,1.73444003,122.89,122.84,3.55584709]
[1769434847763,2.47129004,122.89,122.84,3.55584709]
[1769434848869,9.80239004,122.89,122.84,3.55584709]
[1769434851970,7.3312,122.88,122.84,3.55584709]
[1769434861977,8.06828505,122.88,122.83,7.334]
[1769434862880,8.06828505,122.88,122.83,10.89313629]
[1769434868977,8.06828505,122.88,122.84,3.55913629]
[1769434869172,7.3312,122.88,122.84,3.55913629]
[1769434869771,8.06828505,122.88,122.84,3.55913629]
[1769434871680,0.73708505,122.86,122.8,3.55913629]
[1769434872081,8.06948505,122.86,122.8,10.89493629]
[1769434872281,0.73708505,122.85,122.8,10.89493629]
[1769434873279,7.3324,122.86,122.81,3.55913629]
[1769434876287,7.3324,122.86,122.81,10.89443629]
[1769434876791,7.3324,122.86,122.82,5.29216859]
[1769434877597,7.3316,122.88,122.83,3.55913629]
[1769434878997,8.07185168,122.88,122.83,3.55913629]
[1769434884196,8.07185168,122.88,122.83,10.89313629]
[1769434884988,8.07185168,122.88,122.83,3.55913629]
[1769434885192,8.07225168,122.87,122.82,7.3346]
[1769434885394,8.07225168,122.87,122.82,10.8881655]
[1769434887700,8.07225168,122.87,122.82,12.6211978]
[1769434888904,8.07225168,122.87,122.82,10.8881655]
[1769434892508,8.07225168,122.87,122.82,12.6211978]
[1769434900716,8.07225168,122.87,122.82,10.8881655]
[1769434902115,0.74025168,122.87,122.82,10.8881655]
[1769434902417,0.74025168,122.87,122.83,3.5535655]
[1769434903617,0.74025168,122.87,122.83,10.8875655]
[1769434903815,333.03085168,122.89,122.83,10.8875655]
[1769434904016,333.03085168,122.89,122.83,12.6205978]
[1769434904211,333.03085168,122.89,122.83,10.8875655]
[1769434904628,0.74025168,122.88,122.83,10.8875655]
[1769434906115,333.03085168,122.89,122.84,3.5535655]
[1769434907323,9.80308398,122.91,122.85,3.5535655]
[1769434907513,8.07005168,122.91,122.85,3.5535655]
[1769434908313,8.07005168,122.91,122.85,1.7330323]
[1769434908517,8.07005168,122.91,122.86,3.5535655]
[1769434909523,0.74025168,122.91,122.87,3.46744051]
[1769434910019,325.7184476,122.93,122.88,3.46744051]
[1769434910622,325.7184476,122.93,122.88,5.20047281]
[1769434911018,0.7384476,122.93,122.88,5.20047281]
[1769434911517,0.7384476,122.93,122.88,12.53147281]
[1769434912519,0.7384476,122.93,122.88,10.79844051]
[1769434912824,0.7384476,122.92,122.88,3.46744051]
[1769434913124,2.4714799,122.91,122.85,3.46744051]
[1769434913325,0.7384476,122.91,122.85,3.46744051]
[1769434914021,8.0683476,122.91,122.85,3.46744051]
[1769434914326,0.7384476,122.9,122.85,3.46744051]
[1769434915026,8.0684476,122.9,122.85,3.46744051]
[1769434916023,8.0690476,122.89,122.83,5.20047281]
[1769434916223,8.0690476,122.89,122.83,3.46744051]
[1769434917027,8.0690476,122.89,122.84,3.46744051]
[1769434918118,9.8020799,122.89,122.84,3.46744051]
[1769434918321,9.0636323,122.89,122.84,3.46744051]
[1769434918524,9.8020799,122.89,122.84,3.46744051]
[1769434921724,9.80194349,122.89,122.84,3.46744051]
[1769434922631,8.0690476,122.89,122.84,3.46744051]
[1769434923030,8.0690476,122.89,122.84,10.80094051]
[1769434923530,0.7384476,122.91,122.85,3.46744051]
[1769434923719,0.7384476,122.91,122.86,3.46744051]
[1769434925031,8.0677476,122.91,122.86,3.46744051]
[1769434927928,8.0677476,122.91,122.86,10.79964051]
[1769434928432,0.7384476,122.91,122.86,10.79964051]
[1769434928726,0.7384476,122.91,122.87,3.46744051]
[1769434928927,326.65289589,122.93,122.88,3.46744051]
[1769434928928,327.39134349,122.93,122.88,3.46744051]
[1769434930933,334.71954349,122.93,122.88,3.46744051]
[1769434931730,0.7384476,122.92,122.87,7.3316]
[1769434932632,2.47134349,122.92,122.87,10.79904051]
[1769434934335,0.7384476,122.92,122.87,10.79904051]
[1769434934738,0.7384476,122.92,122.87,12.5319364]
[1769434939840,0.7384476,122.92,122.88,3.28867872]
[1769434942245,332.2482,122.93,122.89,3.28867872]
[1769434942246,324.92,122.93,122.89,3.28867872]
[1769434942741,324.92,122.93,122.89,5.02157461]
[1769434943050,8.06325902,122.96,122.91,3.28867872]
[1769434950042,9.79615491,122.96,122.91,3.28867872]
[1769434950744,8.06325902,122.96,122.91,3.28867872]
[1769434952546,9.79615491,122.96,122.91,3.28867872]
[1769434954041,2.46965491,122.94,122.89,3.28867872]
[1769434955950,2.46965491,122.94,122.89,10.61917872]
[1769434958657,0.73675902,122.94,122.89,10.61917872]
[1769434961556,8.06435902,122.94,122.89,10.61917872]
[1769434961757,8.06435902,122.94,122.89,3.28867872]
[1769434962258,9.79725491,122.94,122.89,3.28867872]
[1769434963653,7.3271,122.95,122.91,3.28867872]
[1769434963855,0.73675902,122.96,122.91,3.28867872]
[1769434964051,2.46965491,122.96,122.91,3.28867872]
[1769434964255,0.73675902,122.96,122.91,3.28867872]
[1769434964557,8.06315902,122.96,122.91,10.61797872]
[1769434966762,0.73675902,122.96,122.91,10.61797872]
[1769434968061,9.79485491,122.98,122.92,10.61737872]
[1769434968860,7.3258,122.97,122.93,3.53895711]
[1769434969164,9.79050221,122.97,122.91,10.86815711]
[1769434969665,9.79050221,122.97,122.92,3.53895711]
[1769434970964,0.73180632,122.94,122.88,3.53895711]
[1769434971361,0.73180632,122.94,122.89,3.53895711]
[1769434972867,0.73180632,122.94,122.89,10.86945711]
[1769434976370,0.73180632,122.94,122.9,3.53895711]
[1769434978976,7.327,122.95,122.9,3.53895711]
[1769434979174,9.79110221,122.96,122.91,3.53895711]
[1769434979774,8.05820632,122.96,122.91,3.53895711]
[1769434980377,0.73180632,122.94,122.89,3.53895711]
[1769434981871,8.05950632,122.94,122.89,3.53895711]
[1769434982672,0.73180632,122.92,122.87,3.53895711]
[1769434983074,2.46470221,122.92,122.87,3.53895711]
[1769434983777,2.46401433,122.92,122.87,3.53895711]
[1769434983974,7.3283,122.93,122.88,3.53895711]
[1769434984474,0.73180632,122.94,122.89,3.53895711]
[1769434986481,8.05960632,122.94,122.89,3.53895711]
[1769434999486,0.73345208,122.93,122.88,7.331]
[1769434999792,2.46566009,122.92,122.87,3.5527337]
[1769435007693,9.79386009,122.93,122.87,3.5527337]
[1769435008795,0.73345208,122.92,122.87,3.5527337]
[1769435015288,0.73345208,122.92,122.87,10.8842337]
[1769435015494,7.3282,122.93,122.88,3.5527337]
[1769435018100,8.06165208,122.93,122.88,3.5527337]
[1769435018399,7.3288,122.92,122.88,3.5527337]
[1769435019000,7.3294,122.91,122.86,3.5527337]
[1769435026501,7.3294,122.91,122.86,5.28494171]
[1769435028397,8.06404172,122.91,122.86,5.28494171]
[1769435028596,8.06404172,122.91,122.86,3.5527337]
[1769435029101,8.06454172,122.9,122.84,315.28362796]
[1769435029502,8.06454172,122.9,122.85,3.37906636]
[1769435031199,8.06454172,122.9,122.85,5.11127437]
[1769435031399,8.06454172,122.9,122.86,3.37906636]
[1769435032802,7.3299,122.9,122.86,3.37906636]
[1769435042120,8.06354172,122.92,122.87,3.37906636]
[1769435046922,8.06404172,122.91,122.85,12.44399664]
[1769435047728,8.06404172,122.91,122.86,3.37906636]
[1769435049330,7.3288,122.92,122.87,3.37906636]
[1769435049527,0.73464172,122.93,122.87,3.37906636]
[1769435049826,2.466772,122.92,122.86,3.37906636]
[1769435050031,0.73464172,122.9,122.84,3.37906636]
[1769435050728,0.73464172,122.9,122.85,3.37906636]
[1769435050931,8.06484172,122.9,122.85,3.37906636]
[1769435052029,8.06484172,122.9,122.85,10.71196636]
[1769435052030,0.73464172,122.9,122.85,10.71196636]
[1769435052435,0.73464172,122.9,122.86,3.37906636]
[1769435052731,8.06404172,122.91,122.86,3.37906636]
[1769435057034,7.3299,122.9,122.86,3.37906636]
[1769435058333,8.06446844,122.9,122.84,10.75420327]
[1769435058739,8.06446844,122.9,122.85,3.52501367]
[1769435059936,0.73456844,122.9,122.85,3.52501367]
[1769435067745,9.06203028,122.91,122.85,3.52501367]
[1769435068141,9.7974359,122.91,122.85,3.52501367]
[1769435073247,0.73540562,122.91,122.86,3.52501367]
[1769435073542,7.3288,122.92,122.86,3.52501367]
[1769435074345,8.06420562,122.92,122.86,3.52501367]
[1769435081353,9.7963359,122.92,122.86,3.52501367]
[1769435083457,0.73540562,122.91,122.86,3.52501367]
[1769435083654,288.93540562,122.93,122.88,3.52501367]
[1769435083958,288.93540562,122.93,122.89,3.52501367]
[1769435086752,288.2,122.93,122.89,5.25714395]
[1769435087562,288.2,122.93,122.89,3.52501367]
[1769435088367,0.73540562,122.94,122.89,3.52501367]
[1769435088964,8.06555812,122.96,122.9,3.26296683]
[1769435089864,0.73915812,122.95,122.9,3.26296683]
[1769435100671,0.73915812,122.95,122.9,10.59286683]
[1769435101671,0.73915812,122.95,122.9,12.32499711]
[1769435102171,0.73915812,122.95,122.9,10.59286683]
[1769435103074,8.06615812,122.95,122.9,3.26296683]
[1769435104976,0.73915812,122.95,122.9,10.59276683]
[1769435105474,0.73915812,122.95,122.91,3.26296683]
[1769435106573,8.06495812,122.97,122.92,3.26296683]
[1769435106774,0.73915812,122.96,122.92,3.26296683]
[1769435107682,2.47017735,122.96,122.92,3.26296683]
[1769435108182,0.73915812,122.96,122.92,3.26296683]
[1769435119286,0.73915812,122.96,122.9,3.43346452]
[1769435119287,0.73282362,122.95,122.9,3.43346452]
[1769435120490,1.73101923,122.96,122.9,3.43346452]
[1769435121094,7.327,122.95,122.9,3.43346452]
[1769435128797,7.327,122.95,122.91,3.43346452]
[1769435130290,8.05902362,122.97,122.92,3.43346452]
[1769435134300,0.73282362,122.97,122.92,10.76216452]
[1769435134800,0.73282362,122.97,122.92,3.43346452]
[1769435137001,324.8,122.98,122.93,3.43346452]
[1769435137898,324.8,122.98,122.93,10.76146452]
[1769435141498,324.8,122.98,122.93,3.43346452]
[1769435141499,332.1252,122.98,122.93,3.43346452]
[1769435141697,332.85802362,122.98,122.93,3.43346452]
[1769435144607,324.8,122.98,122.93,10.76146452]
[1769435144807,324.8,122.98,122.94,3.43346452]
[1769435150010,324.8,122.98,122.95,3.34442494]
[1769435152413,325.53596788,122.98,122.93,3.34442494]
[1769435152917,0.73596788,122.97,122.93,3.34442494]
[1769435153616,0.73596788,122.97,122.93,10.67252494]
[1769435156018,324.8,122.98,122.93,10.67252494]
[1769435156210,324.8,122.98,122.94,3.34442494]
[1769435159119,324.8,122.98,122.94,10.67192494]
[1769435159323,0.73596788,122.99,122.94,10.67192494]
[1769435161615,0.73596788,122.98,122.93,7.3281]
[1769435161822,0.73596788,122.98,122.93,10.67252494]
[1769435163623,1.73101923,122.97,122.93,10.67252494]
[1769435163810,2.46698711,122.98,122.93,10.67252494]
[1769435167421,0.73596788,122.97,122.9,16.94538691]
[1769435167723,438.635,123.02,122.91,7.3288]
[1769435167724,2.46730898,122.95,122.91,7.3288]
[1769435167917,1.7313411,122.95,122.92,3.34442494]
[1769435168517,1.7313411,122.96,122.92,3.34442494]
[1769435168723,0.73596788,122.97,122.92,3.34442494]
[1769435168922,1.7313411,122.96,122.92,3.34442494]
[1769435170618,1.7313411,122.95,122.92,3.34442494]
[1769435172825,1.7313411,122.95,122.91,3.34442494]
[1769435175320,2.46730898,122.96,122.91,3.34442494]
[1769435177823,1.7313411,122.97,122.92,3.34442494]
[1769435178227,1.7313411,122.95,122.9,3.39796476]
[1769435178528,1.7313411,122.95,122.91,3.32895025]
[1769435178918,2.46189925,122.96,122.91,3.32895025]
[1769435180323,9.0571411,122.97,122.91,3.32895025]
[1769435180526,2.46222611,122.98,122.92,10.65765025]
[1769435180732,0.73088501,122.98,122.93,3.32895025]
[1769435181729,1.7313411,122.99,122.94,3.32895025]
[1769435181933,2.46222611,123.0,122.94,3.32895025]
[1769435182233,9.78622611,123.0,122.94,3.32895025]
[1769435182629,9.78622611,123.0,122.94,10.65645025]
[1769435190740,1.7313411,122.99,122.94,10.65645025]
[1769435191643,9.78622611,123.0,122.94,10.65645025]
[1769435192031,9.78622611,123.0,122.95,3.32895025]
[1769435193041,334.52572611,123.01,122.96,3.32895025]
[1769435194445,0.73088501,123.0,122.96,3.32895025]
[1769435199154,8.05498501,123.0,122.96,3.32895025]
[1769435199453,8.05498501,123.0,122.95,7.3269]
[1769435200049,8.05498501,123.0,122.95,10.65585025]
[1769435202654,9.78632611,123.0,122.95,10.65585025]
[1769435203756,0.73088501,123.0,122.95,10.65585025]
[1769435203957,7.3235,123.01,122.96,3.32895025]
[1769435204955,8.05438501,123.01,122.96,3.32895025]
[1769435208060,9.78572611,123.01,122.96,3.32895025]